fUST/lending_fUST_20241206
["ID","MTS","AMOUNT","RATE_DAILY","PERIOD"]
[344416940,1733431838800,-1576.21067874,0.00030705,10]
[344416941,1733431838811,-2795.13000042,0.00030705,10]
[344416942,1733431838823,-19797.6,0.00030705,10]
[344416943,1733431838834,-425.28322452,0.00030705,10]
[344416944,1733431838845,-10957.03187614,0.00030705,10]
[344416945,1733431838856,-489999.99999985,0.00030705,10]
[344416989,1733431843342,-39542.69999999,0.00030705,10]
[344416996,1733431843400,-251.9711405,0.00030705,10]
[344417026,1733431843682,-980.0,0.00030705,10]
[344417028,1733431843695,-9519.66219895,0.00030705,10]
[344417040,1733431843801,-13717.65000554,0.00030705,10]
[344417158,1733431846499,-377458.24147169,0.00030705,10]
[344417159,1733431846513,-231536.49908246,0.00030705,10]
[344417160,1733431846566,-4928.25,0.00030705,10]
[344417161,1733431846578,-1752.097425,0.00030705,10]
[344417219,1733433036574,-1988.25710093,0.00027,2]
[344417220,1733433036632,-8.54715907,0.00027,2]
[344417221,1733433036642,-930.8792161,0.00029707,7]
[344417222,1733433036652,-152.56,0.0003,31]
[344417223,1733433036663,-152.56,0.0003,31]
[344417224,1733433036672,-150.0,0.000301,2]
[344417225,1733433036681,-152.56,0.000303,31]
[344417226,1733433036691,-152.56,0.000303,31]
[344417227,1733433036701,-152.56,0.000303,31]
[344417228,1733433036711,-152.56,0.000303,31]
[344417229,1733433036720,-300.0,0.00030498,2]
[344417230,1733433036729,-400.0,0.00030498,2]
[344417231,1733433036739,-152.56,0.000305,31]
[344417232,1733433036748,-152.56,0.000305,31]
[344417233,1733433036757,-152.56,0.000305,31]
[344417234,1733433036767,-152.56,0.000305,31]
[344417235,1733433036776,-1752.097425,0.000305,3]
[344417236,1733433036785,-719.0,0.000305,15]
[344417237,1733433036795,-1000.0,0.00030551,2]
[344417238,1733433036804,-1000.0,0.0003057,2]
[344417239,1733433036814,-666.0,0.00030605,2]
[344417240,1733433036826,-1139.77140857,0.00030605,2]
[344417241,1733433036836,-1535.5131105,0.00030605,2]
[344417242,1733433036846,-828.76258008,0.00030625,2]
[344417243,1733433036860,-1000.0,0.00030627,2]
[344417244,1733433036869,-1000.0,0.00030642,2]
[344417245,1733433036879,-302.0,0.00030658,2]
[344417246,1733433036890,-1000.0,0.00030659,2]
[344417247,1733433036899,-2000.0,0.000307,4]
[344417248,1733433036909,-2000.0,0.000307,4]
[344417249,1733433036918,-510.30610696,0.00030703,2]
[344417250,1733433036929,-275.21709793,0.00030704,2]
[344417251,1733433036938,-151.0,0.00030704,7]
[344417252,1733433036948,-264.1,0.00030704,7]
[344417253,1733433036958,-272.64001,0.00030704,7]
[344417254,1733433036968,-272.64001,0.00030704,7]
[344417255,1733433036978,-272.64001,0.00030704,7]
[344417256,1733433036987,-272.64001,0.00030704,7]
[344417257,1733433036997,-272.64001,0.00030704,7]
[344417258,1733433037006,-272.64001,0.00030704,7]
[344417259,1733433037016,-272.64001,0.00030704,7]
[344417260,1733433037025,-272.64001,0.00030704,7]
[344417261,1733433037034,-272.64001,0.00030704,7]
[344417262,1733433037044,-272.64001,0.00030704,7]
[344417263,1733433037053,-272.64001,0.00030704,7]
[344417264,1733433037063,-272.64001,0.00030704,7]
[344417265,1733433037073,-272.64001,0.00030704,7]
[344417266,1733433037082,-272.64001,0.00030704,7]
[344417267,1733433037092,-272.64001,0.00030704,7]
[344417268,1733433037101,-272.64001,0.00030704,7]
[344417269,1733433037111,-272.64001,0.00030704,7]
[344417270,1733433037224,-272.64001,0.00030704,7]
[344417271,1733433037234,-140.71394957,0.00030704,7]
[344417272,1733433037247,-131.92606043,0.00030704,7]
[344417273,1733433037257,-272.640008,0.00030704,7]
[344417274,1733433037266,-68.54592757,0.00030704,2]
[344417275,1733433037277,-431.45407243,0.00030704,2]
[344417276,1733433037286,-39.08465243,0.00030705,2]
[344417277,1733433037297,-1032.4762356,0.00030705,2]
[344417286,1733433038787,-34328.22169012,0.00030705,2]
[344417287,1733433038796,-107.32772616,0.00030705,11]
[344417300,1733433040482,-179.13032178,0.00030705,11]
[344417301,1733433040492,-316.65967822,0.00030705,11]
[344417302,1733433040505,-183.34032178,0.00030705,11]
[344417303,1733433040515,-500.0,0.00030705,11]
[344417304,1733433040526,-151.0,0.00030705,7]
[344417305,1733433040535,-151.0,0.00030705,7]
[344417306,1733433040547,-151.58247,0.00030705,7]
[344417307,1733433040557,-151.0,0.00030705,7]
[344417308,1733433040566,-151.0,0.00030705,7]
[344417309,1733433040587,-151.0,0.00030705,7]
[344417310,1733433040596,-151.0,0.00030705,7]
[344417311,1733433040606,-151.0,0.00030705,7]
[344417312,1733433040616,-151.0,0.00030705,7]
[344417313,1733433040625,-264.518844,0.00030705,7]
[344417314,1733433040634,-151.0,0.00030705,7]
[344417315,1733433040644,-295.259034,0.00030705,7]
[344417316,1733433040653,-295.259034,0.00030705,7]
[344417317,1733433040663,-295.259034,0.00030705,7]
[344417318,1733433040675,-295.259034,0.00030705,7]
[344417319,1733433040684,-295.259034,0.00030705,7]
[344417320,1733433040693,-295.259034,0.00030705,7]
[344417321,1733433040703,-295.259034,0.00030705,7]
[344417322,1733433040713,-295.259034,0.00030705,7]
[344417323,1733433040722,-143.95269222,0.00030705,7]
[344417360,1733433043789,-151.30634178,0.00030705,7]
[344417362,1733433043800,-295.259034,0.00030705,7]
[344417364,1733433043809,-295.259034,0.00030705,7]
[344417366,1733433043819,-295.259034,0.00030705,7]
[344417368,1733433043830,-295.259034,0.00030705,7]
[344417370,1733433043839,-295.259034,0.00030705,7]
[344417372,1733433043850,-295.259034,0.00030705,7]
[344417374,1733433043861,-295.259034,0.00030705,7]
[344417376,1733433043871,-295.259034,0.00030705,7]
[344417378,1733433043881,-295.259034,0.00030705,7]
[344417380,1733433043891,-295.259034,0.00030705,7]
[344417382,1733433043902,-295.259031,0.00030705,7]
[344417384,1733433043912,-256.265019,0.00030705,7]
[344417386,1733433043921,-256.265019,0.00030705,7]
[344417388,1733433043930,-256.265019,0.00030705,7]
[344417390,1733433043942,-256.265019,0.00030705,7]
[344417392,1733433043951,-256.265019,0.00030705,7]
[344417394,1733433043960,-256.265019,0.00030705,7]
[344417396,1733433043970,-256.265019,0.00030705,7]
[344417398,1733433043980,-256.265019,0.00030705,7]
[344417400,1733433043990,-256.265019,0.00030705,7]
[344417402,1733433044000,-256.265019,0.00030705,7]
[344417404,1733433044009,-256.265019,0.00030705,7]
[344417406,1733433044019,-256.265019,0.00030705,7]
[344417408,1733433044028,-256.265019,0.00030705,7]
[344417410,1733433044038,-256.265019,0.00030705,7]
[344417412,1733433044047,-256.265019,0.00030705,7]
[344417414,1733433044056,-256.265019,0.00030705,7]
[344417416,1733433044065,-256.265019,0.00030705,7]
[344417418,1733433044075,-256.265019,0.00030705,7]
[344417420,1733433044086,-256.265019,0.00030705,7]
[344417422,1733433044095,-256.26502,0.00030705,7]
[344417423,1733433044104,-151.0,0.00030705,7]
[344417425,1733433044113,-151.0,0.00030705,7]
[344417427,1733433044122,-151.0,0.00030705,7]
[344417429,1733433044132,-291.728912,0.00030705,7]
[344417431,1733433044141,-650.55,0.00030705,7]
[344417433,1733433044151,-500.0,0.00030705,10]
[344417435,1733433044160,-500.0,0.00030705,10]
[344417437,1733433044169,-500.0,0.00030705,10]
[344417439,1733433044179,-150.14,0.00030705,10]
[344417441,1733433044188,-150.14,0.00030705,10]
[344417443,1733433044197,-421.192492,0.00030705,7]
[344417445,1733433044206,-421.192492,0.00030705,7]
[344417447,1733433044216,-421.192492,0.00030705,7]
[344417449,1733433044225,-421.192492,0.00030705,7]
[344417451,1733433044235,-421.192492,0.00030705,7]
[344417453,1733433044244,-421.192492,0.00030705,7]
[344417455,1733433044258,-421.192492,0.00030705,7]
[344417457,1733433044267,-421.192492,0.00030705,7]
[344417459,1733433044277,-421.192492,0.00030705,7]
[344417462,1733433044286,-421.192492,0.00030705,7]
[344417463,1733433044296,-421.192492,0.00030705,7]
[344417466,1733433044305,-421.192492,0.00030705,7]
[344417468,1733433044315,-421.192492,0.00030705,7]
[344417469,1733433044325,-421.192492,0.00030705,7]
[344417472,1733433044340,-421.192492,0.00030705,7]
[344417473,1733433044349,-421.192492,0.00030705,7]
[344417475,1733433044359,-421.192492,0.00030705,7]
[344417477,1733433044368,-421.192492,0.00030705,7]
[344417479,1733433044377,-245.23682525,0.00030705,7]
[344417482,1733433044390,-175.95566675,0.00030705,7]
[344417484,1733433044401,-421.192494,0.00030705,7]
[344417486,1733433044411,-151.0,0.00030705,7]
[344417488,1733433044420,-141.43147706,0.00030705,7]
[344417545,1733433046465,-9.56852294,0.00030705,7]
[344417546,1733433046475,-298.162772,0.00030705,7]
[344417547,1733433046484,-151.0,0.00030705,7]
[344417549,1733433046494,-151.0,0.00030705,7]
[344417551,1733433046503,-151.0,0.00030705,7]
[344417552,1733433046512,-151.0,0.00030705,7]
[344417553,1733433046522,-151.0,0.00030705,7]
[344417554,1733433046532,-151.0,0.00030705,7]
[344417555,1733433046542,-151.0,0.00030705,7]
[344417556,1733433046551,-151.0,0.00030705,7]
[344417557,1733433046560,-250.05217,0.00030705,7]
[344417558,1733433046570,-151.0,0.00030705,7]
[344417559,1733433046580,-151.0,0.00030705,7]
[344417560,1733433046590,-151.0,0.00030705,7]
[344417561,1733433046600,-151.0,0.00030705,7]
[344417562,1733433046609,-151.0,0.00030705,7]
[344417563,1733433046619,-151.0,0.00030705,7]
[344417564,1733433046628,-151.0,0.00030705,7]
[344417565,1733433046637,-151.0,0.00030705,7]
[344417566,1733433046647,-151.0,0.00030705,7]
[344417567,1733433046656,-151.0,0.00030705,7]
[344417568,1733433046665,-151.0,0.00030705,7]
[344417569,1733433046674,-151.0,0.00030705,7]
[344417570,1733433046684,-256.525533,0.00030705,7]
[344417571,1733433046693,-151.0,0.00030705,7]
[344417572,1733433046702,-151.0,0.00030705,7]
[344417573,1733433046712,-236.196464,0.00030705,7]
[344417574,1733433046722,-151.0,0.00030705,7]
[344417575,1733433046731,-152.537679,0.00030705,7]
[344417576,1733433046743,-151.0,0.00030705,7]
[344417577,1733433046762,-151.0,0.00030705,7]
[344417578,1733433046780,-500.0,0.00030705,10]
[344417579,1733433046789,-500.0,0.00030705,10]
[344417580,1733433046799,-164.91911922,0.00030705,10]
[344417581,1733433046808,-151.0,0.00030705,7]
[344417582,1733433046818,-151.0,0.00030705,7]
[344417583,1733433046828,-150.09,0.00030705,10]
[344417584,1733433046839,-151.0,0.00030705,7]
[344417585,1733433046849,-151.0,0.00030705,7]
[344417586,1733433046858,-151.0,0.00030705,7]
[344417587,1733433046870,-151.0,0.00030705,7]
[344417588,1733433046879,-150.94523545,0.00030705,10]
[344417589,1733433046889,-191.518248,0.00030705,7]
[344417590,1733433046900,-153.595405,0.00030705,7]
[344417591,1733433046909,-153.595405,0.00030705,7]
[344417592,1733433046919,-153.595405,0.00030705,7]
[344417593,1733433046928,-153.595405,0.00030705,7]
[344417594,1733433046938,-153.595405,0.00030705,7]
[344417595,1733433046948,-153.595405,0.00030705,7]
[344417596,1733433046957,-153.595405,0.00030705,7]
[344417597,1733433046966,-153.595405,0.00030705,7]
[344417598,1733433046975,-153.595405,0.00030705,7]
[344417599,1733433046984,-153.595405,0.00030705,7]
[344417600,1733433046995,-153.595405,0.00030705,7]
[344417601,1733433047011,-153.595405,0.00030705,7]
[344417602,1733433047024,-153.595405,0.00030705,7]
[344417603,1733433047033,-153.595405,0.00030705,7]
[344417604,1733433047042,-153.595405,0.00030705,7]
[344417605,1733433047052,-153.595405,0.00030705,7]
[344417606,1733433047061,-153.595405,0.00030705,7]
[344417607,1733433047070,-153.595405,0.00030705,7]
[344417608,1733433047079,-153.595405,0.00030705,7]
[344417609,1733433047090,-153.595401,0.00030705,7]
[344417610,1733433047099,-289.414997,0.00030705,7]
[344417611,1733433047109,-500.0,0.00030705,10]
[344417612,1733433047118,-500.0,0.00030705,10]
[344417613,1733433047127,-150.09,0.00030705,2]
[344417614,1733433047136,-150.09,0.00030705,10]
[344417615,1733433047147,-500.0,0.00030705,10]
[344417616,1733433047157,-500.0,0.00030705,10]
[344417617,1733433047167,-500.0,0.00030705,10]
[344417618,1733433047177,-150.09,0.00030705,2]
[344417619,1733433047187,-151.0,0.00030705,7]
[344417620,1733433047196,-151.0,0.00030705,7]
[344417621,1733433047205,-500.0,0.00030705,10]
[344417622,1733433047214,-151.0,0.00030705,7]
[344417623,1733433047223,-151.0,0.00030705,7]
[344417624,1733433047233,-151.0,0.00030705,7]
[344417625,1733433047243,-151.0,0.00030705,7]
[344417626,1733433047252,-150.09,0.00030705,10]
[344417627,1733433047262,-151.0,0.00030705,7]
[344417628,1733433047272,-151.0,0.00030705,7]
[344417629,1733433047282,-151.0,0.00030705,7]
[344417630,1733433047292,-151.0,0.00030705,7]
[344417631,1733433047301,-151.0,0.00030705,7]
[344417632,1733433047312,-151.0,0.00030705,7]
[344417633,1733433047323,-269.070969,0.00030705,7]
[344417634,1733433047333,-445.128788,0.00030705,7]
[344417635,1733433047344,-445.128788,0.00030705,7]
[344417636,1733433047353,-370.63438149,0.00030705,7]
[344417637,1733433047366,-74.49440651,0.00030705,7]
[344417638,1733433047375,-445.128788,0.00030705,7]
[344417639,1733433047384,-445.128788,0.00030705,7]
[344417640,1733433047394,-445.128788,0.00030705,7]
[344417641,1733433047403,-445.128788,0.00030705,7]
[344417642,1733433047412,-445.128788,0.00030705,7]
[344417643,1733433047421,-445.128788,0.00030705,7]
[344417644,1733433047430,-445.128788,0.00030705,7]
[344417645,1733433047439,-445.128788,0.00030705,7]
[344417646,1733433047449,-16179.84528949,0.00030705,10]
[344417647,1733433047460,-2606.70058529,0.00030705,10]
[344417651,1733433467230,586.97048678,0.00030704,120]
[344417653,1733433612247,164.851854,0.00013973,2]
[344417721,1733434234977,-3914.89531937,0.00021,5]
[344417722,1733434234986,-3146.99033538,0.000245,2]
[344417723,1733434235064,-460.08570489,0.000245,2]
[344417731,1733434237810,-237.15477651,0.000245,2]
[344417732,1733434237820,-300.0,0.00024999,2]
[344417734,1733434237829,-300.0,0.00024999,2]
[344417735,1733434237838,-1264.01522346,0.00025,2]
[344417737,1733434237850,-743.98779179,0.00025,2]
[344417738,1733434237862,-1024.6,0.00025,2]
[344417739,1733434237872,-420.0,0.00027082,2]
[344417740,1733434237882,-1005.997572,0.0002799,2]
[344417741,1733434237891,-534.77268722,0.0002926,2]
[344417742,1733434237902,-1492.7308529,0.0002926,2]
[344417756,1733434239735,-19170.17768328,0.0002926,2]
[344417757,1733434239745,-587.0,0.00029339,2]
[344417758,1733434239753,-4674.08890391,0.00029415,22]
[344417759,1733434239763,-249.18,0.000301,2]
[344417760,1733434239773,-171.66332462,0.00030136,7]
[344417761,1733434239782,-500.0,0.00030136,7]
[344417762,1733434239792,-500.0,0.00030136,7]
[344417763,1733434239801,-828.229,0.00030263,2]
[344417764,1733434239810,-2375.0,0.00030263,2]
[344417765,1733434239820,-7603.2999997,0.000304,5]
[344417766,1733434239830,-153.06599964,0.00030424,2]
[344417767,1733434239839,-168.773,0.00030429,26]
[344417768,1733434239849,-153.06599962,0.00030485,2]
[344417769,1733434239858,-310.60215338,0.00030499,2]
[344417770,1733434239872,-205.01622218,0.00030499,2]
[344417771,1733434239881,-202.66999082,0.00030499,2]
[344417772,1733434239890,-197.0961112,0.00030499,2]
[344417773,1733434239899,-211.99394444,0.00030499,2]
[344417774,1733434239908,-500.0,0.00030499,2]
[344417775,1733434239918,-500.0,0.00030499,2]
[344417776,1733434239929,-393.55421002,0.00030499,2]
[344417777,1733434239941,-500.0,0.00030499,7]
[344417778,1733434239951,-500.0,0.00030499,7]
[344417779,1733434239960,-500.0,0.00030499,7]
[344417780,1733434239970,-268.21,0.00030499,7]
[344417781,1733434239979,-500.0,0.00030499,2]
[344417782,1733434239988,-500.0,0.00030499,7]
[344417783,1733434239997,-500.0,0.00030499,7]
[344417784,1733434240007,-481.89606379,0.00030499,7]
[344417785,1733434240016,-500.0,0.00030499,7]
[344417786,1733434240025,-499.99999999,0.00030499,7]
[344417787,1733434240033,-5254.78594445,0.000305,2]
[344417788,1733434240052,-7617.08481554,0.000305,2]
[344417819,1733434245999,-2512.41658921,0.000305,2]
[344417826,1733434593425,300.0,0.00030706,120]
[344417957,1733435438014,-4101.09303619,0.00024456,10]
[344417958,1733435438024,-401.80043502,0.000269,5]
[344417959,1733435438034,-1988.257101,0.00027,2]
[344417960,1733435438044,-187.837401,0.00028529,2]
[344417961,1733435438053,-300.0,0.00028534,2]
[344417962,1733435438063,-6335.009492,0.00028538,2]
[344417963,1733435438073,-1491.0472723,0.00028581,2]
[344417964,1733435438082,-303.69241913,0.0002875,2]
[344417965,1733435438092,-500.0,0.0002875,5]
[344417966,1733435438101,-163.27750807,0.0002875,5]
[344417967,1733435438111,-504.19878046,0.000289,5]
[344417968,1733435438120,-203.6177665,0.000289,5]
[344417969,1733435438130,-160.15859866,0.000289,5]
[344417970,1733435438139,-500.0,0.000289,5]
[344417971,1733435438149,-500.0,0.000289,5]
[344417972,1733435438158,-432.30272771,0.000289,2]
[344417973,1733435438168,-651.24261769,0.00029448,5]
[344417974,1733435438178,-152.58,0.0003,31]
[344417975,1733435438189,-500.0,0.00030136,7]
[344417976,1733435438198,-500.0,0.00030136,7]
[344417977,1733435438208,-239.27,0.000302,2]
[344417978,1733435438218,-150.0,0.00030251,2]
[344417979,1733435438229,-223.97,0.00030251,2]
[344417980,1733435438238,-250.0,0.00030251,2]
[344417981,1733435438249,-152.58,0.000303,31]
[344417982,1733435438258,-152.58,0.000303,31]
[344417983,1733435438269,-153.06599962,0.000304,2]
[344417984,1733435438281,-500.0,0.00030451,7]
[344417985,1733435438291,-500.0,0.00030451,7]
[344417986,1733435438300,-151.0,0.00030452,7]
[344417987,1733435438310,-500.0,0.00030473,5]
[344417988,1733435438319,-161.06546114,0.00030473,5]
[344417989,1733435438329,-1000.0,0.00030474,2]
[344417990,1733435438338,-500.0,0.00030498,7]
[344417991,1733435438348,-500.0,0.00030499,2]
[344417992,1733435438358,-500.0,0.00030499,7]
[344417993,1733435438367,-500.0,0.00030499,7]
[344417994,1733435438377,-500.0,0.00030499,7]
[344417995,1733435438386,-500.0,0.00030499,7]
[344417996,1733435438396,-500.0,0.00030499,7]
[344417997,1733435438406,-500.0,0.00030499,7]
[344417998,1733435438415,-500.0,0.00030499,7]
[344417999,1733435438424,-500.0,0.00030499,7]
[344418000,1733435438435,-552.82764372,0.00030499,7]
[344418001,1733435438445,-3697.77897576,0.000305,2]
[344418023,1733435443760,-0.2541416,0.00030372,2]
[344418047,1733435446552,-6998.3110872,0.00030048,2]
[344418048,1733435446562,-6998.3110872,0.00030257,2]
[344418049,1733435446572,-149.7458584,0.00030372,2]
[344418050,1733435446582,-35071.82369309,0.000305,2]
[344418051,1733435446592,-237.05054138,0.000305,2]
[344418052,1733435446605,-24839.44543649,0.000305,7]
[344418097,1733436632237,-5000.0,0.00028707,7]
[344418099,1733436632247,-151.0,0.00029813,7]
[344418101,1733436632256,-152.61,0.0003,31]
[344418103,1733436632266,-151.0,0.00030157,7]
[344418105,1733436632275,-152.61,0.000303,31]
[344418107,1733436632284,-152.61,0.000303,31]
[344418108,1733436632294,-400.0,0.00030398,2]
[344418110,1733436632303,-400.0,0.00030398,2]
[344418113,1733436632313,-246.18025397,0.000304,2]
[344418115,1733436632322,-246.18025394,0.00030452,2]
[344418116,1733436632331,-367.82491185,0.00030452,2]
[344418118,1733436632341,-162.61874154,0.00030473,5]
[344418120,1733436632350,-500.0,0.00030499,2]
[344418122,1733436632360,-500.0,0.00030499,2]
[344418123,1733436632370,-500.0,0.00030499,2]
[344418124,1733436632379,-500.0,0.00030499,2]
[344418125,1733436632389,-3949.709543,0.000305,2]
[344418126,1733436632400,-633.12684086,0.000305,2]
[344418127,1733436632411,-575.01005936,0.000305,2]
[344418146,1733436638153,-1476.53251218,0.000304,2]
[344418147,1733436638162,-43394.28050176,0.000305,2]
[344418148,1733436638172,-171.52230487,0.000305,2]
[344418149,1733436638182,-32232.26646399,0.000305,7]
[344418154,1733436640132,-9910.1,0.000305,7]
[344418155,1733436640145,-781.58018078,0.000305,7]
[344418156,1733436640164,-106532.70453739,0.000305,7]
[344418157,1733436640195,-47791.652882,0.000305,7]
[344418344,1733437833445,-688.35942107,0.00025,7]
[344418346,1733437833457,-311.68220893,0.00025,2]
[344418348,1733437833472,-2251.55583695,0.00025,2]
[344418350,1733437833483,-256.21443627,0.0002509,2]
[344418352,1733437833496,-735.35411516,0.0002509,2]
[344418354,1733437833516,-272.45287086,0.0002509,2]
[344418356,1733437833527,-1291.96594814,0.000259,2]
[344418358,1733437833538,-300.0,0.00025999,2]
[344418360,1733437833549,-1708.48062016,0.00026,2]
[344418362,1733437833562,-913.32309962,0.00026,2]
[344418364,1733437833574,-68.65264388,0.00026,5]
[344418365,1733437833588,-102.91757362,0.00026,5]
[344418367,1733437833599,-10602.64224916,0.00026,3]
[344418370,1733437833622,-16261.42427165,0.00026,2]
[344418371,1733437833634,-474.07048806,0.00026,7]
[344418372,1733437833647,-3500.0,0.00026,2]
[344418373,1733437833659,-282.96156645,0.00026,2]
[344418375,1733437833670,-502.4794918,0.00026,2]
[344418377,1733437833682,-367.26475525,0.00026,2]
[344418378,1733437833694,-4000.0,0.000261,7]
[344418380,1733437833706,-1291.96594809,0.00026573,2]
[344418381,1733437833717,-385.2952707,0.000267,2]
[344418382,1733437833729,-204.13177888,0.00026999,2]
[344418384,1733437833741,-500.0,0.00026999,2]
[344418387,1733437833755,-154.83935667,0.00026999,2]
[344418388,1733437833766,-24069.10764151,0.00027,2]
[344418390,1733437833778,-37512.94450832,0.00027,2]
[344418393,1733437833793,-2723.68115215,0.00027,2]
[344418395,1733437833804,-179.999999,0.00027,2]
[344418397,1733437833815,-420.0,0.00028137,2]
[344418400,1733437833827,-151.0,0.00030204,7]
[344418402,1733437833839,-184.63519047,0.000304,2]
[344418405,1733437833850,-587.0,0.0003045,2]
[344418407,1733437833861,-184.63519045,0.00030469,2]
[344418410,1733437833872,-163.63438446,0.00030473,5]
[344418412,1733437833886,-588.12385297,0.00030498,7]
[344418413,1733437833899,-1130.39954428,0.00030499,2]
[344418414,1733437833913,-233.304,0.00030499,26]
[344418415,1733437833925,-500.0,0.00030499,7]
[344418416,1733437833936,-498.40095864,0.00030499,7]
[344418417,1733437833947,-500.0,0.00030499,2]
[344418418,1733437833959,-500.0,0.00030499,2]
[344418419,1733437833970,-500.0,0.00030499,2]
[344418421,1733437833982,-500.0,0.00030499,2]
[344418422,1733437833993,-500.0,0.00030499,2]
[344418424,1733437834007,-500.0,0.00030499,2]
[344418426,1733437834018,-500.0,0.00030499,2]
[344418427,1733437834028,-500.0,0.00030499,2]
[344418429,1733437834039,-500.0,0.00030499,2]
[344418431,1733437834054,-500.0,0.00030499,2]
[344418433,1733437834065,-500.0,0.00030499,2]
[344418434,1733437834076,-500.0,0.00030499,2]
[344418436,1733437834086,-500.0,0.00030499,2]
[344418438,1733437834098,-500.0,0.00030499,2]
[344418440,1733437834109,-500.0,0.00030499,2]
[344418441,1733437834119,-500.0,0.00030499,2]
[344418442,1733437834129,-500.0,0.00030499,2]
[344418444,1733437834140,-500.0,0.00030499,2]
[344418446,1733437834151,-500.0,0.00030499,2]
[344418447,1733437834161,-500.0,0.00030499,2]
[344418449,1733437834172,-30845.61371387,0.000305,2]
[344418451,1733437834183,-171679.30319806,0.000305,7]
[344418453,1733437834198,-1507.72921615,0.000305,7]
[344418454,1733437834211,-34065.51082902,0.000305,7]
[344418456,1733437834223,-17623.90347376,0.000305,7]
[344418458,1733437834235,-11016.28389833,0.000305,7]
[344418459,1733437834248,-8191.24168066,0.000305,7]
[344418461,1733437834262,-1035.633,0.000305,7]
[344418462,1733437834276,-518.8108458,0.000305,7]
[344418463,1733437834287,-3755.42,0.000305,7]
[344418465,1733437834300,-1839.49999999,0.000305,7]
[344418467,1733437834313,-2804.97,0.000305,7]
[344418468,1733437834326,-15187.71698945,0.000305,7]
[344418469,1733437834339,-885.77216835,0.000305,7]
[344418538,1733437840584,-313.8070212,0.00024953,10]
[344418539,1733437840594,-1291.96594809,0.00027245,2]
[344418540,1733437840603,-455.39209571,0.00027918,2]
[344418541,1733437840615,-273.2611603,0.00027918,2]
[344418542,1733437840627,-563.31269208,0.00027918,2]
[344418543,1733437840637,-1130.39954427,0.00030499,2]
[344418544,1733437840646,-9717.90751073,0.000305,7]
[344418545,1733437840658,-190061.25836152,0.000305,7]
[344418546,1733437840670,-1044.4,0.000305,7]
[344418547,1733437840682,-14369.75344799,0.000305,7]
[344418548,1733437840694,-4767.03587954,0.000305,7]
[344418549,1733437840703,-4898.21412046,0.000305,7]
[344418550,1733437840715,-2954.87587954,0.000305,7]
[344418551,1733437840725,-215.34,0.000305,2]
[344418552,1733437840735,-151.0,0.000305,7]
[344418553,1733437840745,-151.0,0.000305,7]
[344418554,1733437840754,-151.0,0.000305,7]
[344418555,1733437840766,-210.119721,0.000305,7]
[344418556,1733437840775,-210.119721,0.000305,7]
[344418557,1733437840785,-169.070178,0.000305,7]
[344418558,1733437840795,-151.0,0.000305,7]
[344418559,1733437840804,-200.307955,0.000305,7]
[344418560,1733437840814,-200.307955,0.000305,7]
[344418561,1733437840823,-200.307955,0.000305,7]
[344418562,1733437840833,-200.307955,0.000305,7]
[344418563,1733437840842,-500.0,0.000305,33]
[344418564,1733437840851,-151.0,0.000305,7]
[344418565,1733437840860,-151.0,0.000305,7]
[344418566,1733437840870,-151.0,0.000305,7]
[344418567,1733437840879,-201.182568,0.000305,7]
[344418568,1733437840889,-151.0,0.000305,7]